bitfinex-derivatives/quotes_ETHF0:USTF0_20250831
["timestamp","ask_amount","ask_price","bid_price","bid_amount"]
[1756650733753,0.2938,4467.0,4466.9,3.3709]
[1756650734543,0.482,4467.0,4466.9,3.3709]
[1756650740148,0.482,4467.0,4466.9,4.75498213]
[1756650740355,0.4152,4467.6,4467.5,0.1004]
[1756650740954,0.709,4467.6,4467.5,0.1004]
[1756650741563,0.709,4467.6,4467.5,0.1631]
[1756650741758,0.17626254,4468.3,4467.6,0.0627]
[1756650741759,0.2938,4468.3,4467.6,0.0627]
[1756650741964,0.482,4468.3,4468.2,0.1631]
[1756650743566,0.18326132,4469.3,4468.2,0.1631]
[1756650743567,0.227,4468.7,4468.3,0.0627]
[1756650743768,0.1882,4468.4,4468.3,0.1631]
[1756650744163,0.482,4468.4,4468.3,0.1631]
[1756650746863,0.1882,4468.2,4468.1,0.0567]
[1756650747059,3.2078,4468.9,4468.0,3.2078]
[1756650747060,0.2938,4468.1,4468.0,3.2078]
[1756650747265,0.482,4468.1,4468.0,3.3553]
[1756650748767,0.482,4468.1,4468.0,3.2986]
[1756650749074,0.482,4468.1,4468.0,3.3553]
[1756650749773,0.227,4468.8,4468.1,0.0567]
[1756650750069,0.482,4468.7,4468.6,0.1475]
[1756650750463,0.482,4468.7,4468.6,0.0908]
[1756650750668,0.482,4468.7,4468.3,0.0567]
[1756650750869,0.482,4468.7,4468.0,3.2078]
[1756650751170,0.482,4468.5,4468.4,0.1475]
[1756650751376,0.482,4468.5,4468.4,0.0908]
[1756650751864,0.482,4468.5,4468.0,3.2078]
[1756650752174,0.482,4468.1,4468.0,3.2078]
[1756650752371,0.482,4468.1,4468.0,3.3553]
[1756650755071,0.482,4468.1,4468.0,3.2986]
[1756650755576,0.482,4468.1,4468.0,3.3553]
[1756650756972,0.2938,4468.1,4468.0,3.3553]
[1756650757173,0.482,4468.1,4468.0,3.3553]
[1756650757876,0.482,4468.1,4468.0,3.3527]
[1756650758571,0.2938,4468.1,4468.0,3.3527]
[1756650758773,0.227,4468.8,4468.0,4.73678213]
[1756650758973,0.45079,4468.8,4468.1,0.0541]
[1756650759174,0.3003,4468.7,4468.1,0.0541]
[1756650759572,0.486,4468.7,4468.6,0.1407]
[1756650760280,0.3003,4468.7,4468.6,0.1407]
[1756650760778,0.486,4468.7,4468.6,0.1407]
[1756650761473,0.3003,4468.7,4468.6,0.1407]
[1756650762583,0.486,4468.7,4468.6,0.1407]
[1756650763181,0.486,4468.7,4468.3,1.61108213]
[1756650763182,0.486,4468.7,4468.3,0.227]
[1756650763378,0.1857,4468.1,4468.0,3.2078]
[1756650763583,0.486,4468.1,4468.0,3.2944]
[1756650763776,0.486,4468.1,4468.0,3.3485]
[1756650768589,0.486,4468.1,4468.0,3.2078]
[1756650768988,0.486,4468.1,4468.0,3.2944]
[1756650769189,0.486,4468.1,4468.0,3.3485]
[1756650769986,35.4298,4469.4,4468.5,0.0866]
[1756650770282,0.486,4469.0,4468.9,0.1407]
[1756650770487,0.486,4469.0,4468.5,0.227]
[1756650770488,0.486,4468.5,4468.4,0.3677]
[1756650771284,0.1857,4468.6,4468.5,0.1407]
[1756650771486,0.3003,4468.6,4468.5,0.1407]
[1756650771686,3.4348,4469.4,4468.6,0.0541]
[1756650771881,1.08196649,4469.3,4468.6,0.0541]
[1756650772083,0.486,4468.7,4468.6,0.1407]
[1756650772389,0.486,4468.7,4468.6,0.0866]
[1756650773087,0.486,4468.7,4468.6,0.1407]
[1756650773678,0.3003,4469.2,4468.6,0.0866]
[1756650773978,0.3003,4469.5,4469.2,0.0541]
[1756650774183,0.1857,4469.3,4469.2,0.1407]
[1756650774382,0.486,4469.3,4469.2,0.1407]
[1756650775890,0.486,4469.3,4468.5,4.59188213]
[1756650776192,0.486,4468.7,4468.6,0.36446999]
[1756650776392,0.486,4468.7,4468.6,0.1407]
[1756650777789,0.486,4468.7,4468.6,0.3677]
[1756650778587,0.3003,4468.6,4468.5,3.2078]
[1756650778781,0.486,4468.6,4468.5,3.5214]
[1756650779087,0.486,4468.6,4468.5,3.5755]
[1756650779491,0.486,4468.6,4468.5,3.5214]
[1756650779891,0.3003,4469.5,4468.6,0.0541]
[1756650780092,0.486,4468.8,4468.7,1.52478213]
[1756650780683,0.3003,4469.5,4468.7,1.47068213]
[1756650780888,0.486,4469.5,4469.4,0.1407]
[1756650781392,0.486,4469.5,4469.4,0.0866]
[1756650781690,0.486,4469.5,4469.1,0.0541]
[1756650781890,0.486,4469.5,4468.9,1.38408213]
[1756650782091,0.486,4469.0,4468.8,0.0541]
[1756650782394,0.1857,4469.0,4468.9,1.52478213]
[1756650782688,0.486,4469.0,4468.9,1.52478213]
[1756650783290,3.2078,4469.6,4468.9,1.52478213]
[1756650783488,0.486,4469.5,4469.4,0.0866]
[1756650783887,0.486,4469.5,4468.9,1.38408213]
[1756650784081,0.486,4469.1,4469.0,0.1407]
[1756650786093,3.2078,4469.6,4469.0,0.1407]
[1756650786287,3.2078,4469.6,4467.5,7.94382911]
[1756650786288,0.486,4470.1,4470.0,0.0866]
[1756650786489,0.486,4470.1,4470.0,4.73258213]
[1756650788689,0.3003,4470.1,4470.0,4.73258213]
[1756650789290,0.4886,4470.1,4470.0,4.73258213]
[1756650791384,0.4886,4470.1,4470.0,4.95958213]
[1756650793798,0.4886,4470.1,4470.0,3.5755]
[1756650794491,0.4886,4470.1,4470.0,3.5214]
[1756650795700,0.4886,4470.1,4470.0,3.5757]
[1756650796493,0.4886,4470.1,4470.0,3.3487]
[1756650796995,0.4918,4470.6,4470.5,0.1412]
[1756650797589,0.4918,4470.6,4470.2,0.0543]
[1756650797992,0.4918,4470.6,4470.5,0.1412]
[1756650802294,0.3035,4470.6,4470.5,3.349]
[1756650802499,0.4918,4471.3,4471.2,0.1412]
[1756650803205,0.3035,4472.2,4471.3,0.0543]
[1756650803407,0.4918,4471.4,4471.3,0.1412]
[1756650804397,0.4918,4471.4,4471.3,0.3682]
[1756650804891,0.4918,4471.4,4471.3,0.1412]
[1756650805194,0.4918,4471.4,4471.3,0.0869]
[1756650805398,0.4918,4471.4,4471.3,0.3139]
[1756650805701,0.4918,4471.4,4471.3,0.0869]
[1756650805901,0.4918,4471.4,4471.3,0.3679]
[1756650806594,0.4918,4471.4,4471.3,0.0869]
[1756650806800,1.68758213,4472.2,4471.2,0.3134]
[1756650806999,0.4918,4471.3,4471.2,0.227]
[1756650807801,0.3035,4471.3,4471.2,0.3674]
[1756650807997,0.3035,4472.3,4471.3,0.054]
[1756650808197,0.4918,4471.9,4471.8,4.73228213]
[1756650810804,0.4918,4471.9,4471.8,4.67828213]
[1756650811205,0.4918,4471.9,4471.8,4.95928213]
[1756650812509,0.4918,4471.9,4471.8,3.5752]
[1756650813609,0.3035,4471.9,4471.8,3.5752]
[1756650813807,0.3035,4471.9,4471.8,3.3482]
[1756650814008,0.4918,4471.9,4471.8,3.5752]
[1756650814905,0.4918,4471.9,4471.8,3.3482]
[1756650815107,0.4918,4471.9,4471.8,3.5212]
[1756650815607,0.4918,4471.9,4471.8,3.5752]
[1756650816110,0.4918,4471.9,4471.8,3.2942]
[1756650816302,0.4918,4471.9,4471.8,3.4348]
[1756650817308,0.4918,4471.9,4471.8,3.5752]
[1756650818211,0.4918,4471.9,4471.8,3.2078]
[1756650818512,0.4918,4471.9,4471.6,0.0538]
[1756650819808,0.4918,4471.9,4471.5,0.227]
[1756650820018,0.4918,4471.9,4471.5,0.2808]
[1756650820807,0.4918,4471.9,4471.3,3.2078]
[1756650821012,0.2905,4471.8,4471.4,0.226]
[1756650821216,0.4925,4471.5,4471.4,0.226]
[1756650821513,0.4925,4471.4,4471.3,3.2078]
[1756650822311,0.4925,4471.4,4471.3,3.3477]
[1756650822614,0.4925,4471.4,4471.3,3.2078]
[1756650823014,0.4925,4471.4,4471.3,3.3477]
[1756650823712,0.2905,4471.4,4471.3,3.3477]
[1756650823908,0.2905,4471.4,4471.3,3.5737]
[1756650824714,0.4925,4471.4,4471.3,3.5737]
[1756650825408,3.2078,4472.4,4471.3,3.3477]
[1756650825715,0.2905,4472.2,4471.5,0.0538]
[1756650826117,0.4925,4471.6,4471.5,0.1399]
[1756650828223,0.4925,4471.6,4471.5,0.0861]
[1756650829223,0.4925,4471.6,4471.5,0.1399]
[1756650831717,0.202,4471.6,4471.5,0.1399]
[1756650831925,0.202,4471.4,4471.3,3.2078]
[1756650832225,0.4925,4471.4,4471.3,3.4338]
[1756650833727,0.4925,4471.4,4471.3,3.2078]
[1756650833929,0.4925,4471.4,4471.3,3.4338]
[1756650834126,1.58608213,4471.4,4470.8,3.2078]
[1756650834326,0.4925,4470.9,4470.8,3.2078]
[1756650841540,0.4925,4470.9,4470.8,3.3477]
[1756650842942,0.4925,4471.0,4470.9,0.1399]
[1756650844437,0.2905,4471.0,4470.9,0.1399]
[1756650844842,0.4925,4471.0,4470.9,0.1399]
[1756650847640,0.2905,4471.0,4470.9,1.52398213]
[1756650847940,0.2943,4472.0,4471.6,0.0539]
[1756650848141,0.226,4472.1,4471.6,0.1402]
[1756650848142,0.4883,4471.7,4471.6,0.1402]
[1756650852540,0.4883,4471.7,4471.6,0.0863]
[1756650852744,0.4883,4471.7,4471.3,4.87178213]
[1756650852945,0.194,4471.5,4471.4,0.1402]
[1756650853245,0.2943,4472.1,4471.4,0.0863]
[1756650853542,0.2943,4472.1,4471.5,0.0539]
[1756650853743,0.4883,4472.1,4472.0,0.1402]
[1756650854046,0.2943,4472.0,4471.4,0.0539]
[1756650854244,0.194,4471.5,4471.4,0.1402]
[1756650854443,0.4883,4471.5,4471.4,0.1402]
[1756650855545,0.2943,4471.5,4471.4,0.1402]
[1756650855849,0.4883,4472.1,4472.0,0.1402]
[1756650856037,0.4883,4472.1,4471.7,0.2799]
[1756650856244,0.4883,4472.1,4471.7,0.226]
[1756650856845,0.4883,4472.1,4471.8,0.0539]
[1756650857244,0.4883,4472.1,4471.7,0.226]
[1756650857245,0.2943,4472.0,4471.6,1.43798213]
[1756650857441,0.4883,4471.7,4471.6,1.66398213]
[1756650857648,0.4883,4471.7,4471.6,1.75028213]
[1756650859650,0.4883,4471.7,4471.6,0.3662]
[1756650861053,0.4883,4471.7,4471.6,0.1402]
[1756650861554,0.194,4471.7,4471.5,0.226]
[1756650861749,0.4883,4471.6,4471.5,0.226]
[1756650863647,3.2078,4472.2,4471.5,1.69638213]
[1756650863955,0.4883,4472.1,4472.0,0.1402]
[1756650864551,0.194,4470.9,4470.8,3.2078]
[1756650864756,0.4883,4470.9,4470.8,3.06760001]
[1756650865751,0.4883,4470.9,4470.3,0.226]
[1756650868051,0.4883,4470.9,4470.2,0.0539]
[1756650868252,0.4883,4470.9,4470.2,0.2799]
[1756650868767,0.4883,4470.9,4470.2,0.0539]
[1756650868957,0.194,4469.7,4469.6,3.2078]
[1756650869261,0.4883,4469.7,4469.6,3.2078]
[1756650870560,0.4883,4469.2,4469.1,0.3123]
[1756650870958,0.4883,4469.2,4469.1,0.0863]
[1756650871360,0.4883,4469.2,4469.1,0.1402]
[1756650872164,0.198,4470.1,4469.1,0.1402]
[1756650872355,0.2943,4469.9,4469.2,0.0539]
[1756650872659,0.194,4469.3,4469.2,0.1402]
[1756650872861,0.4883,4469.3,4469.2,0.1402]
[1756650874963,0.4883,4469.3,4469.2,0.0863]
[1756650875260,0.194,4469.1,4469.0,1.38408213]
[1756650875563,0.4883,4469.1,4469.0,1.38408213]
[1756650875858,0.4883,4469.0,4468.9,3.2078]
[1756650877153,0.4883,4469.0,4468.9,3.348]
[1756650878560,0.4883,4469.0,4468.9,3.2078]
[1756650881965,0.4883,4469.0,4468.9,3.3463]
[1756650883170,0.2797,4469.6,4469.0,0.0533]
[1756650883969,0.4737,4469.1,4469.0,0.1385]
[1756650885170,0.2797,4469.1,4469.0,0.1385]
[1756650885869,0.4737,4469.1,4469.0,0.1385]
[1756650888269,3.4338,4469.7,4468.9,4.95638213]
[1756650888270,0.4737,4469.0,4468.9,4.95638213]
[1756650888969,0.4737,4469.0,4468.9,4.90308213]
[1756650889173,0.4737,4469.0,4468.9,3.4338]
[1756650889966,0.4737,4469.0,4468.9,3.5723]
[1756650890476,1.38408213,4469.4,4468.4,3.2078]
[1756650890765,0.4737,4468.5,4468.4,3.2078]
[1756650891673,0.66174503,4468.5,4468.4,3.2078]
[1756650892969,0.66174503,4468.5,4468.4,3.3463]
[1756650893870,0.66174503,4468.5,4468.4,3.293]
[1756650894076,0.66174503,4468.5,4468.4,3.3463]
[1756650895673,0.18804503,4468.5,4468.4,3.3463]
[1756650897080,0.18848229,4468.5,4468.4,3.3463]
[1756650898382,0.18848229,4468.5,4468.4,3.5723]
[1756650901882,0.18848229,4468.5,4468.4,7.79609]
[1756650902088,0.13518229,4468.5,4468.4,7.79609]
[1756650902490,0.2797,4470.1,4468.4,7.74279]
[1756650902691,0.4737,4470.1,4469.4,1.38408213]
[1756650902890,0.4737,4470.1,4469.4,1.61008213]
[1756650904298,0.194,4469.5,4469.4,0.226]
[1756650904591,0.18174146,4470.8,4468.2,3.2078]
[1756650904592,0.194,4468.5,4468.2,3.2078]
[1756650904787,0.194,4468.3,4468.2,3.2078]
[1756650904992,0.4737,4468.3,4468.2,3.2078]
[1756650906291,0.194,4468.5,4468.4,0.5197]
[1756650908201,0.4738,4468.5,4468.4,0.5197]
[1756650914605,0.66019895,4468.5,4468.4,0.5197]
[1756650917207,0.4738,4468.5,4468.4,0.5197]
[1756650917503,0.660209,4468.5,4468.4,0.5197]
[1756650918507,0.186409,4468.5,4468.4,0.5197]
[1756650924501,0.1817502,4468.5,4468.4,0.5197]
[1756650928199,0.1817668,4468.5,4468.4,0.5197]
[1756650931004,0.6563668,4468.5,4468.4,0.5197]
[1756650931199,0.6563668,4468.5,4468.4,0.4535]
[1756650931406,0.6563668,4468.5,4468.4,0.7481]
[1756650931608,0.65637555,4468.5,4468.4,0.7481]
[1756650934009,0.65637555,4468.5,4468.4,0.5221]
[1756650934312,0.65637555,4468.5,4468.4,0.7481]
[1756650934816,0.65637555,4468.5,4468.4,0.5221]
[1756650935015,0.65637555,4468.5,4468.4,0.2523]
[1756650936011,0.65637555,4468.5,4468.4,0.5469]
[1756650936205,0.65637555,4468.5,4468.4,2.13058213]
[1756650936416,0.18177555,4468.5,4468.4,2.13058213]
[1756650937615,0.18177555,4468.5,4468.4,0.7465]
[1756650937813,0.66577555,4468.5,4468.4,0.7465]
[1756650938717,0.2892,4468.8,4468.4,0.7465]
[1756650938917,0.18173385,4468.7,4468.4,0.4519]
[1756650939111,0.18173385,4468.6,4468.5,0.4648]
[1756650939311,0.47093385,4468.6,4468.5,0.4648]
[1756650939919,0.47093385,4468.6,4468.5,0.6908]
[1756650940114,0.47093385,4468.6,4468.5,0.4648]
[1756650940314,0.47093385,4468.6,4468.5,0.6908]
[1756650940915,0.47093385,4468.6,4468.5,2.07488213]
[1756650941225,0.67153385,4468.6,4468.5,0.226]
[1756650941518,0.67153385,4468.6,4468.4,0.0263]
[1756650941817,0.67153385,4468.5,4468.4,0.0263]
[1756650942120,0.18173385,4468.5,4468.4,1.87518213]
[1756650942321,0.38230295,4468.5,4468.4,1.59278213]
[1756650942516,0.67150295,4468.5,4468.4,1.87518213]
[1756650945724,0.67150295,4468.5,4468.4,0.0263]
[1756650945924,0.67150295,4468.5,4468.4,0.2523]
[1756650946324,0.67150295,4468.5,4468.4,0.0263]
[1756650949120,0.67150295,4468.5,4468.4,0.2087]
[1756650949327,0.18170295,4468.5,4468.4,0.7171]
[1756650949622,0.18171069,4468.5,4468.4,0.7171]
[1756650950126,0.2892,4468.7,4468.4,0.7171]
[1756650950422,0.67151307,4468.6,4468.5,0.4648]
[1756650950623,0.18171307,4468.6,4468.5,0.4648]
[1756650951724,0.2892,4469.2,4468.6,0.2824]
[1756650951925,0.4898,4469.1,4469.0,5.05668213]
[1756650952125,0.4898,4469.1,4469.0,5.28268213]
[1756650953229,0.4898,4469.1,4469.0,3.8986]
[1756650953626,0.4898,4469.1,4469.0,0.1824]
[1756650953819,0.4898,4469.1,4469.0,0.4084]
[1756650954019,0.4898,4469.1,4469.0,0.6908]
[1756650954429,0.4898,4469.1,4469.0,0.226]
[1756650954623,0.2892,4469.0,4468.9,3.2078]
[1756650954824,0.4898,4469.0,4468.9,3.6726]
[1756650955231,0.4898,4469.0,4468.9,0.4648]
[1756650956232,0.4898,4469.0,4468.9,0.1824]
[1756650957325,0.4898,4469.0,4468.9,0.4648]
[1756650959239,0.2006,4469.0,4468.6,1.38408213]
[1756650959540,0.4898,4468.6,4468.5,0.0263]
[1756650960641,4.4898,4468.6,4468.5,0.0263]
[1756650963143,4.0,4468.6,4467.3,3.2078]
[1756650963446,0.4898,4467.4,4467.3,3.2078]
[1756650964945,0.4898,4467.4,4467.3,3.3902]
[1756650965142,0.4898,4467.4,4467.3,3.6726]
[1756650965348,0.4898,4467.4,4467.3,3.3902]
[1756650965551,0.4898,4467.4,4467.3,3.6726]
[1756650966738,0.226,4468.0,4467.3,4.77428213]
[1756650967045,0.4898,4467.9,4467.8,0.4648]
[1756650968937,3.2078,4468.1,4467.8,0.4648]
[1756650969141,0.2842,4468.3,4468.2,0.4639]
[1756650969337,0.226,4469.0,4468.3,0.2742]
[1756650969639,0.4849,4468.4,4468.3,0.4639]
[1756650970645,0.4849,4468.4,4468.3,0.1897]
[1756650971140,0.4849,4468.4,4468.3,0.4639]
[1756650972343,0.4849,4468.5,4468.4,0.4639]
[1756650972544,0.4849,4468.5,4468.0,1.38408213]
[1756650972849,0.2842,4468.4,4468.3,0.1897]
[1756650973042,0.2007,4468.4,4468.3,0.4639]
[1756650973243,0.4849,4468.4,4468.3,0.4639]
[1756650974243,0.2842,4468.7,4468.3,1.84798213]
[1756650974445,0.226,4468.9,4468.6,0.1897]
[1756650974650,0.4849,4468.9,4468.8,0.1897]
[1756650974849,0.4849,4468.9,4468.8,0.4639]
[1756650977850,0.2007,4468.4,4468.3,3.2078]
[1756650978053,0.4849,4468.4,4468.3,3.2078]
[1756650978253,0.4849,4468.4,4468.0,0.2742]
[1756650978454,0.4849,4468.4,4468.3,0.1897]
[1756650978654,0.4849,4468.4,4468.3,0.4639]
[1756650981056,0.4849,4468.4,4467.9,1.65828213]
[1756650981248,0.2007,4468.1,4468.0,0.4639]
[1756650981450,0.4849,4468.1,4468.0,0.4639]
[1756650982057,0.2007,4468.1,4468.0,0.4639]
[1756650982556,0.4849,4468.1,4468.0,0.4639]
[1756650983149,0.2007,4467.8,4467.7,3.6717]
[1756650983350,0.4849,4467.8,4467.7,3.6717]
[1756650983749,0.4849,4467.8,4467.7,3.2078]
[1756650985955,0.4849,4467.8,4467.7,3.6717]
[1756650989360,0.2842,4468.1,4467.7,3.6717]
[1756650989657,0.4849,4468.2,4468.1,0.1897]
[1756650990859,0.2842,4468.1,4467.8,0.2742]
[1756650991059,0.2007,4467.9,4467.8,0.4639]
[1756650991255,0.4849,4467.9,4467.8,0.4639]
[1756650991654,0.2007,4467.9,4467.8,0.4639]
[1756650991858,0.4849,4467.9,4467.8,0.4639]
[1756650992261,0.2842,4468.2,4467.8,0.4639]
[1756650992462,1.83389213,4468.5,4467.8,0.1897]
[1756650992663,0.4849,4468.4,4468.3,0.4639]
[1756650992861,0.2007,4468.4,4468.3,0.4639]
[1756650993453,0.4849,4468.4,4468.3,0.4639]
[1756650994763,0.4849,4468.6,4468.5,0.1897]
[1756650994965,0.4849,4468.6,4468.5,0.4639]
[1756650999860,0.2983,4467.8,4467.7,3.2078]
[1756651000065,0.4949,4467.2,4467.1,0.1844]
[1756651000268,0.4949,4467.2,4467.1,0.4785]
[1756651000468,3.2078,4467.8,4467.1,1.79234213]
[1756651000769,0.4949,4468.1,4468.0,0.1844]
[1756651002270,0.4949,4468.1,4468.0,0.4785]
[1756651002471,0.4949,4468.1,4468.0,0.1844]
[1756651002667,0.4949,4468.1,4467.4,1.38408213]
[1756651002871,3.4338,4468.3,4467.4,1.38408213]
[1756651003171,0.85460501,4468.2,4467.5,0.2941]
[1756651003360,0.4949,4468.2,4468.1,0.1844]
[1756651003563,1.05116529,4468.2,4468.1,0.1844]
[1756651003960,1.05116529,4468.2,4467.9,0.2941]
[1756651004170,0.4949,4468.2,4467.9,0.2941]
[1756651004365,0.4949,4468.2,4468.1,0.1844]
[1756651004571,1.0511328,4468.2,4468.1,0.1844]
[1756651004970,1.0511328,4468.2,4468.1,0.4785]
[1756651005172,0.4949,4468.2,4468.1,0.4785]
[1756651006072,0.7209,4468.2,4468.1,0.4785]
[1756651006272,0.7209,4468.2,4467.8,0.2941]
[1756651006469,0.2983,4468.1,4467.5,0.2941]
[1756651006674,0.4949,4468.1,4468.0,0.4785]
[1756651008577,0.4949,4468.1,4468.0,0.1844]
[1756651008774,0.1966,4468.1,4467.2,0.2941]
[1756651008980,0.4949,4467.3,4467.2,0.4785]
[1756651010672,0.1966,4467.7,4467.6,0.1844]
[1756651010870,0.4949,4467.7,4467.6,0.4785]
[1756651011070,0.1966,4467.7,4467.6,0.4785]
[1756651012371,0.5243,4468.0,4467.6,0.4785]
[1756651012567,0.4949,4467.9,4467.8,0.1844]
[1756651012773,0.4949,4467.9,4467.8,0.4785]
[1756651021580,0.4949,4468.7,4468.6,0.1844]
[1756651021777,1.05203011,4468.7,4468.6,0.4785]
[1756651022980,0.4949,4468.7,4468.6,0.4785]
[1756651024483,0.226,4469.1,4468.7,0.1844]
[1756651024685,0.4949,4469.0,4468.9,0.4785]
[1756651024883,0.4949,4468.2,4468.1,3.6863]
[1756651025083,0.2983,4468.2,4468.1,3.6863]
[1756651025285,0.226,4468.6,4468.1,3.6863]
[1756651025484,0.7209,4468.6,4468.5,0.1844]
[1756651025786,0.7209,4468.6,4468.5,0.4785]
[1756651027583,3.2078,4469.3,4468.6,0.2941]
[1756651027584,0.2983,4469.2,4468.6,0.2941]
[1756651027785,0.7209,4469.2,4469.1,0.4636]
[1756651027982,1.27765513,4469.2,4469.1,0.4636]
[1756651028888,0.2899,4469.1,4468.3,0.2792]
[1756651029384,0.2899,4469.1,4468.4,0.22378]
[1756651029688,0.2899,4469.1,4468.5,0.2792]
[1756651030888,0.4851,4469.1,4469.0,0.1949]
[1756651031090,0.4851,4469.1,4469.0,0.4741]
[1756651037994,0.2899,4469.0,4468.6,3.487]
[1756651038189,0.4851,4468.7,4468.3,0.2792]
[1756651038392,0.1952,4468.7,4468.6,0.1949]
[1756651038592,0.1952,4468.7,4468.6,0.4741]
[1756651038993,0.4851,4468.7,4468.6,0.4741]
[1756651042598,0.1952,4467.7,4467.6,3.2078]
[1756651042900,0.4851,4467.7,4467.6,3.2078]
[1756651043403,0.4851,4467.7,4467.4,0.2792]
[1756651043701,1.61008213,4468.0,4467.0,3.2078]
[1756651043702,0.4851,4467.6,4467.5,0.1949]
[1756651045707,0.4851,4467.6,4467.3,0.2792]
[1756651046197,0.1952,4467.6,4467.1,0.2792]
[1756651046394,0.1952,4467.6,4467.5,0.4741]
[1756651046895,0.4851,4467.6,4467.5,0.4741]
[1756651054009,0.2899,4469.1,4468.7,0.1949]
[1756651054204,0.2899,4469.1,4469.0,0.4741]
[1756651054603,3.2078,4469.7,4469.0,0.4741]
[1756651054908,0.1952,4469.2,4469.1,0.1949]
[1756651055106,0.4851,4469.2,4469.1,0.4741]
[1756651055902,0.2899,4469.6,4469.1,0.1949]
[1756651056111,0.2899,4469.5,4469.4,0.1949]
[1756651056311,0.2899,4469.5,4469.4,0.4741]
[1756651056717,0.4851,4469.5,4469.4,0.4741]
[1756651058117,0.1952,4469.5,4469.4,0.4741]
[1756651058423,0.4798,4470.1,4470.0,0.3021]
[1756651058610,0.4798,4470.1,4470.0,0.4856]
[1756651059510,0.4798,4470.1,4470.0,0.1835]
[1756651060419,0.1865,4470.1,4469.5,1.38408213]
[1756651060619,0.4798,4469.7,4469.6,0.4856]
[1756651061217,0.4798,4469.3,4469.2,3.6934]
[1756651061522,0.4798,4469.3,4469.2,0.4856]
[1756651064315,1.38408213,4470.1,4469.2,0.4856]
[1756651064623,0.4798,4469.9,4469.8,0.4856]
[1756651064817,0.4798,4469.9,4469.8,0.1835]
[1756651065423,0.4798,4469.9,4469.5,0.3021]
[1756651066720,0.1865,4469.9,4469.2,0.3021]
[1756651066920,0.2933,4469.8,4469.2,0.3021]
[1756651067121,0.4798,4469.8,4469.7,0.1835]
[1756651067321,0.4798,4469.8,4469.5,0.3021]
[1756651067716,0.4798,4469.8,4469.0,1.38408213]
[1756651067717,0.4798,4469.8,4469.7,0.1835]
[1756651067922,0.4798,4469.8,4469.7,0.4856]
[1756651070228,0.4798,4469.8,4469.0,1.38408213]
[1756651070426,0.4798,4469.2,4469.1,0.70934]
[1756651070829,0.4798,4469.2,4469.1,0.4856]
[1756651071631,0.1865,4469.2,4469.1,0.4856]
[1756651071928,0.2933,4469.8,4469.2,0.3021]
[1756651072129,0.4798,4469.8,4469.7,0.4856]
[1756651074828,0.4798,4469.8,4469.7,0.1835]
[1756651076736,0.4798,4469.8,4469.5,0.3021]
[1756651078937,0.2933,4469.7,4469.6,0.1835]
[1756651079137,0.4798,4469.7,4469.6,0.4856]
[1756651081031,0.2933,4469.6,4468.7,3.4338]
[1756651081234,0.4798,4469.0,4468.9,0.4856]
[1756651082337,0.2933,4469.3,4468.9,1.56758213]
[1756651082634,0.2933,4469.3,4469.2,0.4856]
[1756651084031,0.2933,4469.7,4469.6,0.1835]
[1756651084433,1.03703455,4469.7,4469.6,0.4856]
[1756651087044,0.55723455,4469.7,4469.6,0.4856]
[1756651087244,0.2933,4470.0,4469.9,0.1835]
[1756651087433,0.4798,4470.0,4469.9,0.4856]
[1756651101748,4.59188213,4470.9,4470.8,0.1875]
[1756651101749,3.4927,4470.9,4470.8,0.1875]
[1756651101954,0.4783,4470.9,4470.8,0.4887]
[1756651103743,0.1934,4470.2,4470.1,3.2078]
[1756651103943,0.18189216,4471.8,4469.6,3.2078]
[1756651103944,0.4783,4469.7,4469.6,3.2078]
[1756651105041,0.2849,4469.7,4469.6,3.3953]
[1756651105242,0.4783,4469.7,4469.6,3.6965]
[1756651105447,0.4783,4469.7,4469.6,3.3953]
[1756651105643,0.4783,4469.7,4469.6,3.6965]
[1756651107949,0.4783,4469.7,4469.6,3.2078]
[1756651108150,5.07018213,4469.7,4469.0,0.226]
[1756651108350,5.07018213,4469.7,4468.9,0.3012]
[1756651109151,0.4783,4468.8,4468.7,3.2078]
[1756651109554,0.4783,4468.8,4468.2,0.3012]
[1756651109855,1.86238213,4468.8,4468.2,0.3012]
[1756651110451,0.4783,4468.8,4468.2,0.3012]
[1756651112351,1.86238213,4468.8,4468.2,0.3012]
[1756651112549,1.86238213,4468.8,4468.1,3.2078]
[1756651112749,0.1934,4468.2,4468.1,3.3953]
[1756651113056,0.4783,4468.2,4468.1,3.6965]
[1756651113653,0.4783,4468.2,4468.1,3.2078]
[1756651113854,0.4783,4467.5,4467.4,3.6965]
[1756651114058,1.86238213,4467.5,4466.8,3.2078]
[1756651114253,0.4783,4466.9,4466.8,3.6965]
[1756651115261,0.4783,4466.9,4466.8,3.3953]
[1756651115759,0.4783,4466.9,4466.8,3.2078]
[1756651116152,0.4783,4466.9,4466.8,3.3953]
[1756651116356,0.4783,4466.9,4466.8,3.2078]
[1756651116759,0.4783,4466.9,4466.3,3.2078]
[1756651117060,1.38408213,4467.1,4466.3,3.6965]
[1756651117061,0.4783,4466.4,4466.3,3.6965]
[1756651117364,0.1934,4466.4,4466.3,3.6965]
[1756651117659,1.38408213,4467.1,4466.3,3.3953]
[1756651117957,0.4789,4466.6,4466.5,0.5042]
[1756651119159,3.2078,4467.3,4466.5,0.5042]
[1756651119365,0.7049,4467.2,4467.1,0.5042]
[1756651120560,0.4789,4467.2,4467.1,0.5042]
[1756651122566,0.1884,4467.2,4467.1,0.5042]
[1756651124866,3.9127,4467.3,4467.2,0.5042]